[Event "Late-Titled-Tuesday-Blitz-May-14-2024"]
[Site "Chess.com"]
[Date "2024.05.14"]
[Round "4"]
[White "GMthekingindian"]
[Black "Supelyel"]
[Result "1-0"]
[WhiteElo "2305"]
[BlackElo "2415"]
[TimeControl "180+1"]
[EndTime "14:40:27 PDT"]
[Termination "GMthekingindian won on time"]

1. d4 {[%clk 0:02:54.9]} 1... d6 {[%clk 0:02:59.2]} 2. Nf3 {[%clk 0:02:55.1]}
2... Nd7 {[%clk 0:02:58.8]} 3. g3 {[%clk 0:02:55.7]} 3... e5 {[%clk 0:02:58.6]}
4. Bg2 {[%clk 0:02:54.7]} 4... Ngf6 {[%clk 0:02:58.4]} 5. O-O {[%clk 0:02:54.7]}
5... Be7 {[%clk 0:02:58.8]} 6. dxe5 {[%clk 0:02:54.1]} 6... dxe5 {[%clk
0:02:58.8]} 7. Nc3 {[%clk 0:02:49.4]} 7... c6 {[%clk 0:02:52]} 8. a4 {[%clk
0:02:48.8]} 8... a5 {[%clk 0:02:46.2]} 9. Nd2 {[%clk 0:02:48.3]} 9... Qc7 {[%clk
0:02:45.5]} 10. Nc4 {[%clk 0:02:46]} 10... h6 {[%clk 0:02:45.2]} 11. b3 {[%clk
0:02:33]} 11... O-O {[%clk 0:02:44.9]} 12. Ba3 {[%clk 0:02:33.3]} 12... Nc5
{[%clk 0:02:33.2]} 13. Qc1 {[%clk 0:02:11.9]} 13... Be6 {[%clk 0:02:23.6]} 14.
Ne3 {[%clk 0:02:00.3]} 14... Rfe8 {[%clk 0:02:14.2]} 15. Rd1 {[%clk 0:01:52.9]}
15... Qb6 {[%clk 0:01:48]} 16. Rd2 {[%clk 0:01:37.6]} 16... Rad8 {[%clk
0:01:36]} 17. Qe1 {[%clk 0:01:32.8]} 17... Rxd2 {[%clk 0:01:32.1]} 18. Qxd2
{[%clk 0:01:33.7]} 18... Rd8 {[%clk 0:01:31.7]} 19. Qe1 {[%clk 0:01:34]} 19...
Kf8 {[%clk 0:01:13.6]} 20. Rd1 {[%clk 0:01:32.6]} 20... Na6 {[%clk 0:01:01.9]}
21. Bxe7+ {[%clk 0:01:27.9]} 21... Kxe7 {[%clk 0:01:02.8]} 22. Ne4 {[%clk
0:01:24.9]} 22... Nd5 {[%clk 0:00:46.4]} 23. Nc4 {[%clk 0:01:25.2]} 23... Qc7
{[%clk 0:00:27.9]} 24. Qxa5 {[%clk 0:01:25]} 24... Qxa5 {[%clk 0:00:25.3]} 25.
Nxa5 {[%clk 0:01:25.9]} 25... Rd7 {[%clk 0:00:20.5]} 26. c4 {[%clk 0:01:23.7]}
26... Ndb4 {[%clk 0:00:13]} 27. Rxd7+ {[%clk 0:01:24.6]} 27... Kxd7 {[%clk
0:00:13]} 28. Nxb7 {[%clk 0:01:25.3]} 28... Kc7 {[%clk 0:00:10.4]} 29. Nbc5
{[%clk 0:01:25]} 29... Bc8 {[%clk 0:00:11.1]} 30. Nxa6+ {[%clk 0:01:13]} 30...
Nxa6 {[%clk 0:00:11.4]} 31. Nd2 {[%clk 0:01:04.9]} 31... Nc5 {[%clk 0:00:11.3]}
32. Be4 {[%clk 0:01:03.6]} 32... f5 {[%clk 0:00:11.1]} 33. Bc2 {[%clk
0:01:03.5]} 33... Na6 {[%clk 0:00:10.4]} 34. e4 {[%clk 0:01:01.8]} 34... g6
{[%clk 0:00:10.1]} 35. exf5 {[%clk 0:01:02]} 35... gxf5 {[%clk 0:00:11]} 36. Nf3
{[%clk 0:00:59.7]} 36... Kd6 {[%clk 0:00:11.6]} 37. Kf1 {[%clk 0:00:59.6]} 37...
Nb4 {[%clk 0:00:12.1]} 38. Bb1 {[%clk 0:00:59.8]} 38... c5 {[%clk 0:00:12]} 39.
Ke2 {[%clk 0:00:58.2]} 39... e4 {[%clk 0:00:12.4]} 40. Nd2 {[%clk 0:00:56.9]}
40... Ke5 {[%clk 0:00:13.3]} 41. f3 {[%clk 0:00:53.4]} 41... Bb7 {[%clk
0:00:13.1]} 42. fxe4 {[%clk 0:00:33.5]} 42... fxe4 {[%clk 0:00:10.8]} 43. g4
{[%clk 0:00:31.6]} 43... Kd4 {[%clk 0:00:09.7]} 44. h4 {[%clk 0:00:30.3]} 44...
e3 {[%clk 0:00:09.5]} 45. Nf1 {[%clk 0:00:30.7]} 45... Kc3 {[%clk 0:00:09.2]}
46. Nxe3 {[%clk 0:00:27.9]} 46... Kxb3 {[%clk 0:00:09.6]} 47. a5 {[%clk
0:00:28.6]} 47... Nc6 {[%clk 0:00:07.4]} 48. g5 {[%clk 0:00:25.1]} 48... Nd4+
{[%clk 0:00:07.7]} 49. Kf2 {[%clk 0:00:25]} 49... hxg5 {[%clk 0:00:08.1]} 50.
hxg5 {[%clk 0:00:25]} 50... Kb4 {[%clk 0:00:06.7]} 51. g6 {[%clk 0:00:23.5]}
51... Ne6 {[%clk 0:00:05.3]} 52. Bf5 {[%clk 0:00:11.3]} 52... Ng7 {[%clk
0:00:05.5]} 53. Kg3 {[%clk 0:00:11.3]} 53... Kxa5 {[%clk 0:00:05.2]} 54. Kf4
{[%clk 0:00:11.4]} 54... Kb4 {[%clk 0:00:05.7]} 55. Ke5 {[%clk 0:00:09.8]} 55...
Bf3 {[%clk 0:00:05.6]} 56. Kf6 {[%clk 0:00:09.5]} 56... Nh5+ {[%clk 0:00:05.8]}
57. Kf7 {[%clk 0:00:08.1]} 57... Be2 {[%clk 0:00:06.2]} 58. Bg4 {[%clk
0:00:02.5]} 58... Bxg4 {[%clk 0:00:03.1]} 59. Nxg4 {[%clk 0:00:02.5]} 59... Kxc4
{[%clk 0:00:04]} 60. Nf6 {[%clk 0:00:02]} 1-0

[Event "Late-Titled-Tuesday-Blitz-May-14-2024"]
[Site "Chess.com"]
[Date "2024.05.14"]
[Round "4"]
[White "Oneofmyturns"]
[Black "Nf3c5"]
[Result "1-0"]
[WhiteElo "2803"]
[BlackElo "2561"]
[TimeControl "180+1"]
[EndTime "14:40:30 PDT"]
[Termination "Oneofmyturns won on time"]

1. d4 {[%clk 0:03:00.9]} 1... Nf6 {[%clk 0:02:58.9]} 2. c4 {[%clk 0:03:01.3]}
2... Nc6 {[%clk 0:02:57.9]} 3. Nf3 {[%clk 0:03:00.3]} 3... e6 {[%clk 0:02:57.6]}
4. a3 {[%clk 0:03:00.7]} 4... d6 {[%clk 0:02:57.6]} 5. Nc3 {[%clk 0:02:59.2]}
5... g6 {[%clk 0:02:56.6]} 6. g3 {[%clk 0:02:58.3]} 6... Bg7 {[%clk 0:02:57]} 7.
Bg2 {[%clk 0:02:58.9]} 7... O-O {[%clk 0:02:56.7]} 8. O-O {[%clk 0:02:59.6]}
8... a5 {[%clk 0:02:56.2]} 9. Rb1 {[%clk 0:02:55.5]} 9... e5 {[%clk 0:02:46.5]}
10. d5 {[%clk 0:02:51.6]} 10... Nb8 {[%clk 0:02:40]} 11. e4 {[%clk 0:02:47.6]}
11... Na6 {[%clk 0:02:37.5]} 12. b4 {[%clk 0:02:47]} 12... c6 {[%clk 0:02:31.8]}
13. h3 {[%clk 0:02:43]} 13... axb4 {[%clk 0:02:27.8]} 14. axb4 {[%clk 0:02:43]}
14... c5 {[%clk 0:02:28.3]} 15. bxc5 {[%clk 0:02:33.4]} 15... Nxc5 {[%clk
0:02:25.2]} 16. Qc2 {[%clk 0:02:33.7]} 16... Nfxe4 {[%clk 0:02:17.9]} 17. Nxe4
{[%clk 0:02:25.3]} 17... Nxe4 {[%clk 0:02:17.6]} 18. Nxe5 {[%clk 0:02:25.2]}
18... Nc5 {[%clk 0:02:12.8]} 19. Nd3 {[%clk 0:02:11.6]} 19... Bf5 {[%clk
0:02:11.5]} 20. Rd1 {[%clk 0:02:12.2]} 20... Nxd3 {[%clk 0:01:32.3]} 21. Rxd3
{[%clk 0:02:13.1]} 21... Re8 {[%clk 0:01:29.2]} 22. Kh2 {[%clk 0:02:03.6]} 22...
Qc7 {[%clk 0:01:20.7]} 23. Be3 {[%clk 0:01:56]} 23... Ra3 {[%clk 0:01:12.3]} 24.
Rbb3 {[%clk 0:01:50.9]} 24... Rxb3 {[%clk 0:01:01.6]} 25. Qxb3 {[%clk
0:01:51.8]} 25... Bxd3 {[%clk 0:01:01.8]} 26. Qxd3 {[%clk 0:01:52.7]} 26... b6
{[%clk 0:00:59.1]} 27. Qb3 {[%clk 0:01:50]} 27... Rc8 {[%clk 0:00:58.4]} 28. Bf1
{[%clk 0:01:49.8]} 28... Rb8 {[%clk 0:00:57.3]} 29. Qb5 {[%clk 0:01:47.5]} 29...
Be5 {[%clk 0:00:55.5]} 30. Kg2 {[%clk 0:01:43.9]} 30... Bc3 {[%clk 0:00:55.3]}
31. Be2 {[%clk 0:01:35]} 31... Qe7 {[%clk 0:00:52.2]} 32. Bd3 {[%clk 0:01:27.9]}
32... Qf6 {[%clk 0:00:49.8]} 33. h4 {[%clk 0:01:15.2]} 33... Bd4 {[%clk
0:00:48.8]} 34. Bf4 {[%clk 0:01:15.8]} 34... h6 {[%clk 0:00:44.3]} 35. Qd7
{[%clk 0:01:09.7]} 35... Bc5 {[%clk 0:00:42.6]} 36. Be4 {[%clk 0:00:58.8]} 36...
g5 {[%clk 0:00:39.8]} 37. hxg5 {[%clk 0:00:58.4]} 37... hxg5 {[%clk 0:00:40.7]}
38. Qg4 {[%clk 0:00:59]} 38... Re8 {[%clk 0:00:33.4]} 39. Bxg5 {[%clk
0:00:50.2]} 39... Qg7 {[%clk 0:00:27.4]} 40. Bf3 {[%clk 0:00:44.1]} 40... Re5
{[%clk 0:00:26]} 41. Qc8+ {[%clk 0:00:42.2]} 41... Qf8 {[%clk 0:00:26.6]} 42.
Qg4 {[%clk 0:00:39.8]} 42... Qg7 {[%clk 0:00:26.1]} 43. Qc8+ {[%clk 0:00:39.7]}
43... Kh7 {[%clk 0:00:26.8]} 44. Bf4 {[%clk 0:00:37.6]} 44... Re1 {[%clk
0:00:25.5]} 45. Bg4 {[%clk 0:00:36.4]} 45... Qf6 {[%clk 0:00:24]} 46. Qf8 {[%clk
0:00:18]} 46... Qg6 {[%clk 0:00:23.5]} 47. Bf3 {[%clk 0:00:16.3]} 47... Ra1
{[%clk 0:00:15.2]} 48. Qe7 {[%clk 0:00:16.6]} 48... Ra2 {[%clk 0:00:14.7]} 49.
Be4 {[%clk 0:00:16.3]} 49... Rxf2+ {[%clk 0:00:15.3]} 50. Kh3 {[%clk 0:00:15.9]}
50... Kg7 {[%clk 0:00:08.8]} 51. Bxg6 {[%clk 0:00:16]} 51... Kxg6 {[%clk
0:00:09.7]} 52. Qg5+ {[%clk 0:00:16]} 52... Kh7 {[%clk 0:00:09.8]} 53. Qf6
{[%clk 0:00:16.3]} 53... Kg8 {[%clk 0:00:08.4]} 54. Kg4 {[%clk 0:00:16.5]} 54...
Rf1 {[%clk 0:00:08.4]} 55. Qd8+ {[%clk 0:00:13]} 55... Kg7 {[%clk 0:00:08.1]}
56. Bxd6 {[%clk 0:00:13.7]} 56... f5+ {[%clk 0:00:07.1]} 57. Kh3 {[%clk
0:00:12.3]} 57... Rh1+ {[%clk 0:00:07]} 58. Kg2 {[%clk 0:00:12]} 58... Rg1+
{[%clk 0:00:07.4]} 59. Kh2 {[%clk 0:00:12.7]} 59... Bd4 {[%clk 0:00:03.5]} 60.
Qg5+ {[%clk 0:00:11.8]} 60... Kf7 {[%clk 0:00:01.3]} 61. Qxf5+ {[%clk
0:00:12.2]} 61... Ke8 {[%clk 0:00:02.2]} 62. Qe6+ {[%clk 0:00:11.3]} 1-0

[Event "Late-Titled-Tuesday-Blitz-May-14-2024"]
[Site "Chess.com"]
[Date "2024.05.14"]
[Round "4"]
[White "disciplinedbrat"]
[Black "BjarkeSahl"]
[Result "0-1"]
[WhiteElo "2448"]
[BlackElo "2122"]
[TimeControl "180+1"]
[EndTime "14:40:35 PDT"]
[Termination "BjarkeSahl won by resignation"]

1. a3 {[%clk 0:03:00.9]} 1... c6 {[%clk 0:02:59.7]} 2. b4 {[%clk 0:03:01.2]}
2... d5 {[%clk 0:03:00.4]} 3. Bb2 {[%clk 0:03:02.1]} 3... Nf6 {[%clk 0:03:00.4]}
4. g3 {[%clk 0:03:02]} 4... Nbd7 {[%clk 0:03:01]} 5. Bg2 {[%clk 0:03:02.9]} 5...
e5 {[%clk 0:03:01.3]} 6. d3 {[%clk 0:03:02.5]} 6... Bd6 {[%clk 0:03:01.9]} 7.
Nd2 {[%clk 0:03:02.3]} 7... Qe7 {[%clk 0:03:02.4]} 8. e4 {[%clk 0:03:02.9]} 8...
a5 {[%clk 0:02:58]} 9. exd5 {[%clk 0:02:57.7]} 9... cxd5 {[%clk 0:02:54.6]} 10.
b5 {[%clk 0:02:57.7]} 10... a4 {[%clk 0:02:47.2]} 11. Ne2 {[%clk 0:02:57.3]}
11... O-O {[%clk 0:02:43.2]} 12. O-O {[%clk 0:02:56.8]} 12... Nb6 {[%clk
0:02:24.6]} 13. Re1 {[%clk 0:02:56.1]} 13... Be6 {[%clk 0:02:22.1]} 14. Nf3
{[%clk 0:02:40.6]} 14... Qc7 {[%clk 0:02:14.7]} 15. Nc3 {[%clk 0:02:24.5]} 15...
Bg4 {[%clk 0:02:02.5]} 16. h3 {[%clk 0:02:23.2]} 16... Bh5 {[%clk 0:01:58.9]}
17. g4 {[%clk 0:02:23.3]} 17... Bg6 {[%clk 0:01:59.1]} 18. Na2 {[%clk
0:02:20.6]} 18... Rfe8 {[%clk 0:01:57.4]} 19. Qd2 {[%clk 0:02:20.4]} 19... Rac8
{[%clk 0:01:53]} 20. Rac1 {[%clk 0:02:20.5]} 20... d4 {[%clk 0:01:47.8]} 21. c4
{[%clk 0:02:15.2]} 21... Nfd7 {[%clk 0:01:43.7]} 22. Nb4 {[%clk 0:02:13.1]}
22... Nc5 {[%clk 0:01:43.5]} 23. Rcd1 {[%clk 0:01:59.8]} 23... Nb3 {[%clk
0:01:37.9]} 24. Qc2 {[%clk 0:01:56.4]} 24... Nd7 {[%clk 0:01:37.9]} 25. Nd5
{[%clk 0:01:56.2]} 25... Qd8 {[%clk 0:01:37.2]} 26. Nd2 {[%clk 0:01:47.6]} 26...
Ndc5 {[%clk 0:01:36.8]} 27. Ne4 {[%clk 0:01:44.3]} 27... Bxe4 {[%clk 0:01:27.7]}
28. Bxe4 {[%clk 0:01:43.6]} 28... Nxe4 {[%clk 0:01:18.4]} 29. Rxe4 {[%clk
0:01:44.5]} 29... Qh4 {[%clk 0:01:09.6]} 30. Kg2 {[%clk 0:01:44.4]} 30... Nc5
{[%clk 0:01:09.2]} 31. Re2 {[%clk 0:01:41.8]} 31... f5 {[%clk 0:01:04.3]} 32.
gxf5 {[%clk 0:01:22.5]} 32... Rf8 {[%clk 0:01:02.1]} 33. Bc1 {[%clk 0:01:07.8]}
33... Rxf5 {[%clk 0:01:01]} 34. Rg1 {[%clk 0:00:58.3]} 34... Rcf8 {[%clk
0:01:00.3]} 35. Kf1 {[%clk 0:00:57.9]} 35... Qxh3+ {[%clk 0:00:56.8]} 36. Ke1
{[%clk 0:00:58.2]} 36... Qxd3 {[%clk 0:00:36.9]} 37. Qxd3 {[%clk 0:00:51.8]}
37... Nxd3+ {[%clk 0:00:36.8]} 38. Kd2 {[%clk 0:00:51.4]} 38... Nxc1 {[%clk
0:00:32.4]} 39. Rxc1 {[%clk 0:00:49.3]} 39... Rxf2 {[%clk 0:00:32]} 40. c5
{[%clk 0:00:49.9]} 40... Rxe2+ {[%clk 0:00:17]} 41. Kxe2 {[%clk 0:00:49.8]}
41... Rc8 {[%clk 0:00:16.5]} 42. cxd6 {[%clk 0:00:43.6]} 42... Rd8 {[%clk
0:00:16.3]} 43. Rc8 {[%clk 0:00:29.3]} 43... Rxc8 {[%clk 0:00:13.2]} 44. Ne7+
{[%clk 0:00:29.7]} 44... Kf7 {[%clk 0:00:13.8]} 45. Nxc8 {[%clk 0:00:29.8]}
45... Ke6 {[%clk 0:00:14.3]} 46. Nb6 {[%clk 0:00:22.2]} 46... Kxd6 {[%clk
0:00:12.4]} 47. Nxa4 {[%clk 0:00:22.7]} 47... h5 {[%clk 0:00:12.2]} 48. Nb2
{[%clk 0:00:20.7]} 48... e4 {[%clk 0:00:09.1]} 49. a4 {[%clk 0:00:20.6]} 49...
h4 {[%clk 0:00:06.9]} 50. Nc4+ {[%clk 0:00:20.9]} 50... Kc5 {[%clk 0:00:06.7]}
51. Nd2 {[%clk 0:00:21.3]} 51... e3 {[%clk 0:00:03.4]} 52. Ne4+ {[%clk 0:00:21]}
52... Kb6 {[%clk 0:00:03.4]} 53. Kd3 {[%clk 0:00:20.2]} 53... h3 {[%clk
0:00:03.4]} 54. Ng3 {[%clk 0:00:19.4]} 54... h2 {[%clk 0:00:03]} 55. Nh1 {[%clk
0:00:19.4]} 55... Ka5 {[%clk 0:00:02.8]} 56. Ng3 {[%clk 0:00:16.1]} 56... b6
{[%clk 0:00:03.1]} 57. Nh1 {[%clk 0:00:16.2]} 57... Kxa4 {[%clk 0:00:03.7]} 58.
Kxd4 {[%clk 0:00:13.3]} 58... e2 {[%clk 0:00:02.7]} 59. Kd3 {[%clk 0:00:13.5]}
59... e1=Q {[%clk 0:00:02.9]} 60. Ng3 {[%clk 0:00:14.2]} 60... h1=Q {[%clk
0:00:03.3]} 61. Ne2 {[%clk 0:00:14]} 61... Qxe2+ {[%clk 0:00:03.2]} 62. Kxe2
{[%clk 0:00:14.4]} 62... g5 {[%clk 0:00:04]} 0-1

[Event "Late-Titled-Tuesday-Blitz-May-14-2024"]
[Site "Chess.com"]
[Date "2024.05.14"]
[Round "4"]
[White "mitrabhaa"]
[Black "lucasmito"]
[Result "0-1"]
[WhiteElo "2908"]
[BlackElo "2737"]
[TimeControl "180+1"]
[EndTime "14:40:49 PDT"]
[Termination "lucasmito won by resignation"]

1. Nf3 {[%clk 0:02:31.4]} 1... d5 {[%clk 0:02:58.2]} 2. c4 {[%clk 0:02:31.5]}
2... d4 {[%clk 0:02:58.2]} 3. b4 {[%clk 0:02:31.2]} 3... f6 {[%clk 0:02:56.5]}
4. d3 {[%clk 0:02:29.6]} 4... e5 {[%clk 0:02:56.3]} 5. Qb3 {[%clk 0:02:30.2]}
5... c5 {[%clk 0:02:50.6]} 6. bxc5 {[%clk 0:02:29.9]} 6... Nd7 {[%clk
0:02:36.2]} 7. Ba3 {[%clk 0:02:25.8]} 7... Nxc5 {[%clk 0:02:18.3]} 8. Bxc5
{[%clk 0:02:22.5]} 8... Qa5+ {[%clk 0:02:18.9]} 9. Nbd2 {[%clk 0:02:20.5]} 9...
Bxc5 {[%clk 0:02:18.5]} 10. g3 {[%clk 0:02:19.2]} 10... Ne7 {[%clk 0:01:57.2]}
11. Bg2 {[%clk 0:02:17.6]} 11... Bd7 {[%clk 0:01:57.8]} 12. Qxb7 {[%clk
0:02:00.5]} 12... Bc6 {[%clk 0:01:53]} 13. Qb2 {[%clk 0:02:00.2]} 13... Ba3
{[%clk 0:01:48]} 14. Qb1 {[%clk 0:01:56.2]} 14... O-O {[%clk 0:01:45.5]} 15. O-O
{[%clk 0:01:55.6]} 15... Rab8 {[%clk 0:01:45.3]} 16. Nb3 {[%clk 0:01:55.7]}
16... Qc3 {[%clk 0:01:43.5]} 17. Qe1 {[%clk 0:01:52.1]} 17... Rfc8 {[%clk
0:01:16.4]} 18. Nfd2 {[%clk 0:01:34.6]} 18... Bxg2 {[%clk 0:01:15.8]} 19. Kxg2
{[%clk 0:01:35.5]} 19... f5 {[%clk 0:01:12.3]} 20. Nf3 {[%clk 0:01:34.8]} 20...
Nc6 {[%clk 0:01:08.7]} 21. Qd2 {[%clk 0:01:11.6]} 21... e4 {[%clk 0:00:58]} 22.
dxe4 {[%clk 0:01:06.9]} 22... fxe4 {[%clk 0:00:58.9]} 23. Qxc3 {[%clk
0:01:02.9]} 23... dxc3 {[%clk 0:00:56.2]} 24. Ng5 {[%clk 0:01:01.4]} 24... e3
{[%clk 0:00:31.9]} 25. Ne4 {[%clk 0:00:52.3]} 25... c2 {[%clk 0:00:31.2]} 26.
fxe3 {[%clk 0:00:36.4]} 26... Ne5 {[%clk 0:00:30.5]} 27. c5 {[%clk 0:00:36.4]}
27... Nc4 {[%clk 0:00:28.3]} 28. Rfc1 {[%clk 0:00:26.2]} 28... Bxc1 {[%clk
0:00:22.6]} 29. Rxc1 {[%clk 0:00:27.1]} 29... a5 {[%clk 0:00:16]} 30. Nd4 {[%clk
0:00:13.5]} 30... Rb1 {[%clk 0:00:13.7]} 31. Rxc2 {[%clk 0:00:11.2]} 31... Nxe3+
{[%clk 0:00:14.2]} 32. Kf3 {[%clk 0:00:12.1]} 32... Nxc2 {[%clk 0:00:15.1]} 33.
Nxc2 {[%clk 0:00:13]} 33... Rb2 {[%clk 0:00:15.5]} 34. Nd4 {[%clk 0:00:12.6]}
34... Rxa2 {[%clk 0:00:15.8]} 35. Nf5 {[%clk 0:00:11.5]} 35... Kf8 {[%clk
0:00:13]} 36. Nd4 {[%clk 0:00:09.8]} 36... Ra4 {[%clk 0:00:12.1]} 37. Nb5 {[%clk
0:00:09]} 37... Rb4 {[%clk 0:00:10.7]} 38. Nbd6 {[%clk 0:00:06.9]} 38... Rc6
{[%clk 0:00:11.3]} 39. Nf5 {[%clk 0:00:03.6]} 39... Rxe4 {[%clk 0:00:10.7]} 40.
Kxe4 {[%clk 0:00:03.9]} 40... Rxc5 {[%clk 0:00:11.3]} 41. Ne3 {[%clk 0:00:04.6]}
41... a4 {[%clk 0:00:09.8]} 42. Kd4 {[%clk 0:00:05.2]} 42... Rc8 {[%clk
0:00:10.3]} 43. Nc4 {[%clk 0:00:05.8]} 43... Rb8 {[%clk 0:00:09.4]} 44. Kc3
{[%clk 0:00:05.6]} 44... Rb3+ {[%clk 0:00:09.8]} 45. Kc2 {[%clk 0:00:06.2]}
45... Ke7 {[%clk 0:00:09.6]} 46. Nb2 {[%clk 0:00:06.7]} 46... Re3 {[%clk
0:00:09]} 47. Kd2 {[%clk 0:00:06.2]} 47... a3 {[%clk 0:00:09.5]} 48. Nd1 {[%clk
0:00:06.3]} 48... a2 {[%clk 0:00:09.7]} 49. Nxe3 {[%clk 0:00:06.6]} 49... a1=Q
{[%clk 0:00:10.2]} 50. Nc2 {[%clk 0:00:06.8]} 50... Qa5+ {[%clk 0:00:09.6]} 51.
Ke3 {[%clk 0:00:07]} 51... Qg5+ {[%clk 0:00:10.5]} 52. Kf2 {[%clk 0:00:06.9]}
52... Qh5 {[%clk 0:00:10.8]} 53. Ne3 {[%clk 0:00:07.8]} 53... Qxh2+ {[%clk
0:00:11]} 54. Ng2 {[%clk 0:00:08.7]} 54... Kf6 {[%clk 0:00:11.3]} 55. Kf3 {[%clk
0:00:09.3]} 55... Kg5 {[%clk 0:00:11.8]} 56. Ne3 {[%clk 0:00:09.2]} 56... Qh5+
{[%clk 0:00:11.9]} 57. Kf2 {[%clk 0:00:09.7]} 57... Qf7+ {[%clk 0:00:12.8]} 58.
Kg2 {[%clk 0:00:09.8]} 58... h5 {[%clk 0:00:13.7]} 59. Nf1 {[%clk 0:00:09.7]}
59... g6 {[%clk 0:00:14.2]} 60. Nh2 {[%clk 0:00:10.2]} 60... Qb7+ {[%clk
0:00:14.8]} 61. Nf3+ {[%clk 0:00:10.8]} 61... Kg4 {[%clk 0:00:15.5]} 62. Kf2
{[%clk 0:00:11.6]} 62... Qb6+ {[%clk 0:00:15.5]} 63. Kg2 {[%clk 0:00:12]} 63...
Kf5 {[%clk 0:00:15.8]} 64. Nh4+ {[%clk 0:00:12.2]} 64... Ke4 {[%clk 0:00:15.4]}
65. Nf3 {[%clk 0:00:12.7]} 65... Ke3 {[%clk 0:00:15.8]} 66. Ng1 {[%clk
0:00:12.2]} 66... Qf6 {[%clk 0:00:15.2]} 67. Nh3 {[%clk 0:00:09.5]} 67... Kxe2
{[%clk 0:00:14.7]} 68. Nf4+ {[%clk 0:00:10.4]} 68... Ke3 {[%clk 0:00:15.1]} 69.
Nh3 {[%clk 0:00:10.7]} 69... Qf3+ {[%clk 0:00:14.5]} 70. Kh2 {[%clk 0:00:11.2]}
70... Qe2+ {[%clk 0:00:14.7]} 71. Kh1 {[%clk 0:00:11.8]} 71... Qd1+ {[%clk
0:00:13.9]} 72. Kh2 {[%clk 0:00:11.9]} 72... Qc2+ {[%clk 0:00:14.7]} 73. Kh1
{[%clk 0:00:11.8]} 73... Kf3 {[%clk 0:00:15.5]} 0-1